fUST/lending_fUST_20240806
["ID","MTS","AMOUNT","RATE_DAILY","PERIOD"]
[334282847,1722888661736,-500.0,0.00041643,31]
[334282848,1722888661745,-500.0,0.00041643,31]
[334282849,1722888661754,-500.0,0.00041643,31]
[334282850,1722888661763,-340.20812402,0.00041643,31]
[334282851,1722888661772,-500.0,0.00041643,31]
[334282852,1722888661782,-508.64,0.00041643,31]
[334282853,1722888661791,-500.0,0.00041643,31]
[334282854,1722888661800,-500.0,0.00041643,31]
[334282855,1722888661809,-500.0,0.00041643,31]
[334282856,1722888661819,-506.85140986,0.00041643,31]
[334282857,1722888661828,-500.0,0.00041643,31]
[334282858,1722888661838,-491.49400525,0.00041643,31]
[334282859,1722888661846,-441.64177045,0.00041643,20]
[334282860,1722888662278,2463.30721101,0.00027,120]
[334282861,1722888676232,194.54850496,0.00021916,2]
[334282862,1722888687108,156.2,0.000266,31]
[334282863,1722888687159,156.2,0.000305,31]
[334282864,1722888687226,156.2,0.000344,31]
[334282865,1722888716841,2937.75386962,0.000344,4]
[334282866,1722888716861,3597.02147442,0.000344,4]
[334282867,1722888718279,273.37336231,0.00027,120]
[334283011,1722889029455,171.015148,0.00014247,2]
[334283012,1722889097009,1492.75012023,0.00014247,2]
[334283013,1722889100084,250.04869026,0.00014247,2]
[334283014,1722889102559,2935.09249374,0.00014247,2]
[334283015,1722889105905,2108.7693428,0.00014247,2]
[334283016,1722889112549,1542.32420497,0.00014247,2]
[334283018,1722889535149,-380.41507054,0.00014247,2]
[334283019,1722889556106,-262.9289288,0.00014247,2]
[334283020,1722889556127,-1605.07027687,0.00019477,2]
[334283021,1722889625153,-4544.6986422,0.00019256,2]
[334283022,1722889637096,-3495.19479096,0.00019256,2]
[334283023,1722889639102,-429.44914562,0.00019256,2]
[334283024,1722889642107,-1173.21933293,0.00019256,2]
[334283025,1722889642130,-77.59984071,0.00019451,2]
[334283026,1722889643112,-1077.12000079,0.00019451,2]
[334283028,1722889687513,2083.81330373,0.0002,10]
[334283031,1722889745163,-174.373693,0.00014247,2]
[334283032,1722889745185,-2433.66987656,0.000154,2]
[334283033,1722889745207,-715.91367639,0.00019477,2]
[334283034,1722889748170,-1280.83587776,0.00019477,2]
[334283035,1722889748191,-198.3012351,0.00019547,2]
[334283036,1722889748771,-1301.6987649,0.00019547,2]
[334283037,1722889748792,-180.46429061,0.00019999,2]
[334283038,1722889748812,-424.96911884,0.00019999,2]
[334283039,1722889748833,-1263.77838108,0.0002,2]
[334283040,1722889748857,-159.25334668,0.00020721,2]
[334283041,1722889748877,-209.53927788,0.00020721,2]
[334283042,1722889748897,-300.0,0.00020997,2]
[334283043,1722889748918,-300.0,0.00020997,2]
[334283044,1722889748939,-154.76817509,0.00021632,2]
[334283045,1722889748959,-1852.71841401,0.00021916,2]
[334283046,1722889748979,-6354.70841656,0.00021916,2]
[334283047,1722889749000,-154.59033561,0.00025,2]
[334283048,1722889749021,-743.91771799,0.00025,30]
[334283049,1722889749041,-160.54991199,0.00026599,2]
[334283050,1722889749064,-155.59,0.000266,31]
[334283051,1722889749087,-155.59,0.000266,31]
[334283052,1722889749108,-160.54991199,0.00026604,2]
[334283053,1722889749130,-814.52724895,0.00026679,2]
[334283054,1722889749151,-204.091459,0.00026692,2]
[334283055,1722889749172,-7450.7877643,0.0002695,2]
[334283056,1722889749192,-4181.02325297,0.00027,2]
[334283057,1722889749213,-1965.23253652,0.00028,120]
[334283058,1722889749233,-151.0,0.0003,120]
[334283059,1722889749254,-151.0,0.0003,120]
[334283060,1722889749277,-155.59,0.000305,31]
[334283061,1722889749301,-155.59,0.000305,31]
[334283062,1722889749322,-163.789411,0.00031507,120]
[334283063,1722889749343,-6121.48524422,0.00031541,3]
[334283064,1722889750130,-1988.53475578,0.00031541,3]
[334283065,1722889750622,3510.32695161,0.00031541,3]
[334283066,1722889753096,-415.66295615,0.00031541,3]
[334283067,1722889753124,-2832.36009224,0.00031541,3]
[334283068,1722889754165,202.53,0.00031541,120]
[334283069,1722889754410,150.5,0.00031541,120]
[334283070,1722889754869,150.5,0.00031531,120]
[334283071,1722889755184,150.5,0.00031541,120]
[334283072,1722889755376,150.5,0.00031521,120]
[334283073,1722889755667,150.5,0.00031531,120]
[334283074,1722889756583,265.41,0.00031521,120]
[334283075,1722889763175,2624.13538981,0.00031541,3]
[334283157,1722889838542,-160.54991199,0.00024238,2]
[334283158,1722889838552,-47.00555531,0.00031507,120]
[334283159,1722889838568,-116.78385569,0.00031507,120]
[334283160,1722889838577,-5194.6,0.00031541,3]
[334283161,1722889838587,-500.0,0.0003155,2]
[334283162,1722889838596,-534.78445204,0.0003155,2]
[334283163,1722889838606,-39441.56218227,0.00031551,60]
[334283164,1722889838617,-21687.4430475,0.00031551,60]
[334283165,1722889838629,-312796.41949695,0.00031551,60]
[334283175,1722889840219,-234.3002896,0.00031551,60]
[334283176,1722889840231,-13034.75564177,0.00031551,60]
[334283177,1722889840240,-477.50034561,0.000338,2]
[334283178,1722889840249,-963.82883012,0.000339,2]
[334283179,1722889840258,-151.0,0.00034,120]
[334283180,1722889840268,-155.59,0.000344,31]
[334283181,1722889840277,-155.59,0.000344,31]
[334283182,1722889840286,-2000.0,0.00035533,2]
[334283183,1722889840296,-2000.0,0.00035542,2]
[334283184,1722889840305,-2000.0,0.00035551,2]
[334283185,1722889840314,-2000.0,0.00035559,2]
[334283186,1722889840497,-477.50034558,0.00035599,2]
[334283187,1722889840508,-963.82883009,0.00036401,2]
[334283188,1722889840519,-2805.88770711,0.0003726,31]
[334283189,1722889840528,-477.50034558,0.00037398,2]
[334283190,1722889840538,-151.0,0.00037507,120]
[334283191,1722889840548,-151.0,0.00038,120]
[334283192,1722889840557,-591.58768058,0.00038231,4]
[334283193,1722889840567,-155.59,0.000383,31]
[334283194,1722889840576,-155.59,0.000383,31]
[334283195,1722889840586,-963.82883009,0.00038902,2]
[334283196,1722889840595,-3868.0,0.00039,120]
[334283197,1722889840606,-477.50034558,0.00039196,2]
[334283198,1722889840616,-163.789411,0.00039384,120]
[334283199,1722889840625,-3868.0,0.0004,120]
[334283200,1722889840638,-3868.0,0.0004,120]
[334283201,1722889840648,-200.0,0.0004,2]
[334283202,1722889840657,-500.0,0.00040547,30]
[334283203,1722889840667,-500.0,0.00040643,120]
[334283204,1722889840676,-500.0,0.00040643,120]
[334283205,1722889840686,-500.0,0.00040643,120]
[334283206,1722889840696,-253.33,0.00040643,120]
[334283207,1722889840705,-500.0,0.00040684,32]
[334283208,1722889840718,-4295.83222661,0.000408,30]
[334283209,1722889840728,-500.0,0.00040821,34]
[334283210,1722889840737,-766.05622766,0.00040821,120]
[334283211,1722889840746,-500.0,0.00040958,36]
[334283212,1722889840756,-14287.5214272,0.0004099,5]
[334283213,1722889840766,-477.50034558,0.00040995,2]
[334283214,1722889840776,-27970.2175076,0.00040995,5]
[334283215,1722889840786,-2000.0,0.00040995,2]
[334283216,1722889840796,-3868.0,0.00041,120]
[334283217,1722889840805,-3868.0,0.00041,120]
[334283218,1722889840815,-3989.26,0.00041,120]
[334283219,1722889840824,-30000.0,0.00041,5]
[334283220,1722889840833,-20000.0,0.00041,3]
[334283221,1722889840843,-200.0,0.00041073,2]
[334283222,1722889840852,-91705.19723614,0.00041085,5]
[334283223,1722889841226,-1787.83034767,0.00041085,5]
[334283270,1722889843130,-4328.83,0.0004099,3]
[334283271,1722889843140,-20807.14383419,0.00041085,5]
[334283272,1722889843149,-170.21,0.0004109,120]
[334283273,1722889843159,-500.0,0.00041095,31]
[334283274,1722889843168,-500.0,0.00041095,31]
[334283275,1722889843177,-500.0,0.00041095,31]
[334283276,1722889843187,-500.0,0.00041095,31]
[334283277,1722889843196,-500.0,0.00041095,31]
[334283279,1722889843205,-500.0,0.00041095,31]
[334283281,1722889843216,-500.0,0.00041095,31]
[334283283,1722889843226,-500.0,0.00041095,31]
[334283285,1722889843235,-506.78500315,0.00041095,31]
[334283286,1722889843244,-500.0,0.00041095,31]
[334283287,1722889843254,-500.0,0.00041095,31]
[334283288,1722889843263,-500.0,0.00041095,31]
[334283289,1722889843272,-500.0,0.00041095,31]
[334283290,1722889843281,-543.93460481,0.00041095,31]
[334283291,1722889843291,-500.0,0.00041095,31]
[334283292,1722889843300,-500.0,0.00041095,31]
[334283293,1722889843310,-500.0,0.00041095,31]
[334283294,1722889843320,-500.0,0.00041095,31]
[334283295,1722889843329,-500.0,0.00041095,31]
[334283296,1722889843339,-527.60049729,0.00041095,31]
[334283297,1722889843349,-500.0,0.00041095,31]
[334283298,1722889843358,-500.0,0.00041095,31]
[334283299,1722889843367,-500.0,0.00041095,31]
[334283300,1722889843376,-500.0,0.00041095,31]
[334283301,1722889843386,-500.0,0.00041095,31]
[334283302,1722889843395,-500.0,0.00041095,31]
[334283303,1722889843405,-969.42,0.00041095,31]
[334283304,1722889843414,-500.0,0.00041095,31]
[334283305,1722889843423,-527.52028041,0.00041095,31]
[334283306,1722889843437,-500.0,0.00041095,31]
[334283307,1722889843447,-500.0,0.00041095,31]
[334283308,1722889843456,-636.45797424,0.00041095,31]
[334283309,1722889843468,-500.0,0.00041095,31]
[334283310,1722889843478,-502.142652,0.00041095,31]
[334283311,1722889843488,-500.0,0.00041095,31]
[334283312,1722889843498,-500.0,0.00041095,31]
[334283313,1722889843507,-500.0,0.00041095,31]
[334283314,1722889843518,-122.59842237,0.00041095,31]
[334283315,1722889843566,-377.40157763,0.00041095,31]
[334283316,1722889843576,-500.0,0.00041095,31]
[334283317,1722889843585,-500.0,0.00041095,31]
[334283318,1722889843594,-500.0,0.00041095,31]
[334283319,1722889843603,-500.0,0.00041095,31]
[334283320,1722889843612,-506.85806358,0.00041095,31]
[334283321,1722889843622,-500.0,0.00041095,31]
[334283322,1722889843632,-500.0,0.00041095,31]
[334283323,1722889843641,-500.0,0.00041095,31]
[334283324,1722889843651,-343.11124426,0.00041095,31]
[334283325,1722889843660,-500.0,0.00041095,31]
[334283326,1722889843669,-500.0,0.00041095,31]
[334283327,1722889843679,-500.0,0.00041095,31]
[334283328,1722889843689,-500.0,0.00041095,31]
[334283329,1722889843698,-523.42,0.00041095,31]
[334283330,1722889843707,-500.0,0.00041095,31]
[334283331,1722889843718,-500.0,0.00041095,31]
[334283332,1722889843730,-500.0,0.00041095,31]
[334283333,1722889843740,-1539.87902961,0.00041095,31]
[334283334,1722889843753,-1134.342098,0.00041095,31]
[334283341,1722889846469,-500.0,0.0004099,3]
[334283342,1722889857648,273.37336231,0.00027,120]
[334283343,1722889900096,152.99729037,0.00021916,2]
[334283368,1722890736139,-179.941106,0.00014247,2]
[334283369,1722890736161,-174.445726,0.00014247,2]
[334283370,1722890736181,-1032.16501396,0.00019547,2]
[334283371,1722890831571,-247.71950785,0.00018643,2]
[334283372,1722890852920,-120.69824415,0.00018643,2]
[334283373,1722890852943,-1075.25839457,0.00018643,2]
[334283374,1722890857528,-2668.22407822,0.00018643,2]
[334283375,1722890948115,-300.0,0.00018642,2]
[334283376,1722890948140,-752.31016148,0.00018643,2]
[334283377,1722890948161,-1239.69729321,0.00018643,2]
[334283378,1722890950158,-117.61638392,0.00018643,2]
[334283379,1722890950179,-838.51982186,0.00018643,2]
[334283380,1722890950200,-912.4763458,0.00018643,2]
[334283381,1722890950220,-738.58105149,0.00018643,2]
[334283382,1722890950241,-4712.37284123,0.00018643,2]
[334283383,1722890950262,-1275.42663099,0.00019167,7]
[334283384,1722890950283,-2278.204521,0.00019177,3]
[334283385,1722890950304,-1763.49757797,0.00019256,2]
[334283386,1722890950328,-1610.68802731,0.00019256,2]
[334283387,1722890950349,-2551.41034007,0.00019256,2]
[334283388,1722890950370,-500.0,0.0001945,2]
[334283389,1722890950392,-500.0,0.0001945,2]
[334283390,1722890950413,-500.0,0.0001945,2]
[334283391,1722890950435,-500.0,0.0001945,2]
[334283392,1722890950456,-500.0,0.0001945,2]
[334283393,1722890950477,-4257.34381888,0.00019451,2]
[334283394,1722890950497,-287.79610663,0.00019451,2]
[334283395,1722890950517,-244.82593148,0.00019477,2]
[334283396,1722890950538,-696.33317793,0.00019477,2]
[334283397,1722890950559,-554.23773884,0.00019477,2]
[334283398,1722890950579,-178.4664739,0.00019547,2]
[334283399,1722890950601,-277.18370616,0.00019547,2]
[334283400,1722890950622,-250.35702584,0.00019547,2]
[334283401,1722890950645,-154.77557542,0.00019547,2]
[334283402,1722890950667,-250.0,0.00019778,2]
[334283403,1722890950689,-250.0,0.00019832,2]
[334283404,1722890950710,-1492.48292961,0.00019841,2]
[334283405,1722890950734,-250.0,0.00019886,2]
[334283406,1722890950757,-9250.9485664,0.00019931,2]
[334283407,1722890950779,-250.0,0.0001994,2]
[334283408,1722890950803,-250.0,0.00019995,2]
[334283409,1722890950824,-156.11968405,0.00019999,2]
[334283410,1722890950847,-250.0,0.00020049,2]
[334283411,1722890950869,-250.0,0.00020103,2]
[334283412,1722890950896,-250.0,0.00020157,2]
[334283413,1722890950918,-250.0,0.00020212,2]
[334283414,1722890950939,-250.0,0.00020266,2]
[334283415,1722890950960,-250.0,0.0002032,2]
[334283416,1722890950982,-250.0,0.00020374,2]
[334283417,1722890951004,-250.0,0.00020429,2]
[334283418,1722890951025,-250.0,0.00020483,2]
[334283419,1722890951046,-420.0,0.00020506,2]
[334283420,1722890951068,-250.0,0.00020537,2]
[334283421,1722890951089,-174.440422,0.00020565,2]
[334283422,1722890951110,-250.0,0.00020591,2]
[334283423,1722890951140,-250.0,0.00020646,2]
[334283424,1722890951174,-250.0,0.000207,2]
[334283425,1722890951204,-250.0,0.00020754,2]
[334283426,1722890951237,-250.0,0.00020808,2]
[334283427,1722890951269,-1438.29474334,0.00020999,2]
[334283428,1722890951299,-156.91793096,0.00020999,2]
[334283429,1722890951328,-154.73694719,0.00021609,2]
[334283430,1722890951359,-368.6,0.00021896,3]
[334283431,1722890951385,-184.3,0.00021896,3]
[334283432,1722890951417,-552.9,0.00021896,3]
[334283433,1722890951450,-18543.0608773,0.00021906,3]
[334283434,1722890951483,-884.64,0.00021906,3]
[334283435,1722890951513,-4181.02325297,0.00021916,2]
[334283436,1722890951540,-281.0,0.00022557,2]
[334283437,1722890951573,-737.2,0.00023266,3]
[334283438,1722890951600,-368.6,0.00023266,3]
[334283439,1722890951629,-1492.48292958,0.00024488,2]
[334283440,1722890951658,-1297.50926532,0.00025,30]
[334283441,1722890951686,-160.54991199,0.00026589,2]
[334283442,1722890951715,-155.1,0.000266,31]
[334283443,1722890951744,-155.1,0.000266,31]
[334283444,1722890951773,-155.1,0.000266,31]
[334283445,1722890951800,-368.417752,0.00027964,2]
[334283446,1722890951831,-737.2,0.00029126,3]
[334283447,1722890951859,-1492.48292958,0.00029136,2]
[334283448,1722890951889,-151.0,0.0003,120]
[334283449,1722890951917,-151.0,0.0003,120]
[334283450,1722890951944,-1474.4,0.00030496,3]
[334283451,1722890951973,-155.1,0.000305,31]
[334283452,1722890952005,-155.1,0.000305,31]
[334283453,1722890952034,-155.1,0.000305,31]
[334283454,1722890952062,-163.789411,0.00031507,120]
[334283455,1722890952090,-1492.48292958,0.00033783,2]
[334283456,1722890952119,-151.0,0.00034,120]
[334283457,1722890952164,2409.79123184,0.00021642,2]
[334283458,1722890952192,38893.87176944,0.00021642,2]
[334283459,1722890952299,-155.1,0.000344,31]
[334283460,1722890952329,-155.1,0.000344,31]
[334283461,1722890952359,-155.1,0.000344,31]
[334283462,1722890952390,-500.0,0.00036732,15]
[334283463,1722890952419,-504.20045607,0.00036732,15]
[334283464,1722890952589,4487.35058741,0.00019177,2]
[334283465,1722890952619,9771.64651072,0.00019177,2]
[334283466,1722890961113,-6500.53568167,0.00019177,2]
[334283468,1722890985839,250.15678194,0.00022597,2]
[334283470,1722891004136,955.14,0.00025,60]
[334283471,1722891005147,591.58768058,0.00022597,2]
[334283472,1722891005725,156.12428899,0.00022597,2]
[334283473,1722891007144,1821.70055237,0.00025,30]
[334283474,1722891007168,4.98605834,0.00025,30]
[334283475,1722891017336,172.13713327,0.0002739,2]
[334283496,1722891032283,-4255.13798104,0.0003726,31]
[334283497,1722891032295,-950.81799261,0.0003726,31]
[334283498,1722891032305,-151.0,0.00038,120]
[334283499,1722891032314,-150.112233,0.000381,6]
[334283500,1722891032323,-18543.0608773,0.00038221,4]
[334283501,1722891032332,-8695.11237043,0.00038231,4]
[334283540,1722891034194,1634.42825146,0.0002739,2]
[334283573,1722891038282,-24007.11476419,0.00038231,4]
[334283575,1722891038292,-155.1,0.000383,31]
[334283577,1722891038303,-155.1,0.000383,31]
[334283578,1722891038313,-155.1,0.000383,31]
[334283579,1722891038322,-18543.0608773,0.0003842,4]
[334283580,1722891038332,-1492.48292958,0.0003843,2]
[334283581,1722891038342,-151.0,0.00038575,120]
[334283582,1722891038351,-179.941106,0.00038795,2]
[334283583,1722891038361,-174.445726,0.00038795,2]
[334283584,1722891038371,-3868.0,0.00039,120]
[334283585,1722891038381,-150.112233,0.000391,8]
[334283586,1722891038390,-7726.0,0.0004,120]
[334283587,1722891038401,-3868.0,0.0004,120]
[334283588,1722891038411,-3868.0,0.0004,120]
[334283589,1722891038421,-200.0,0.0004,2]
[334283590,1722891038430,-150.112233,0.000401,5]
[334283591,1722891038440,-500.0,0.00040547,30]
[334283592,1722891038449,-500.0,0.00040643,120]
[334283593,1722891038459,-500.0,0.00040643,120]
[334283594,1722891038470,-500.0,0.00040643,120]
[334283595,1722891038480,-253.33,0.00040643,120]
[334283596,1722891038489,-6400.47,0.00040674,3]
[334283597,1722891038499,-500.0,0.00040684,32]
[334283598,1722891038508,-2000.0,0.00040686,4]
[334283600,1722891038518,-4295.83222661,0.000408,30]
[334283601,1722891038527,-766.05622766,0.00040821,120]
[334283602,1722891038536,-500.0,0.00040821,34]
[334283603,1722891038546,-7364.46057986,0.00040861,2]
[334283604,1722891038555,-697.16784473,0.0004087,2]
[334283605,1722891038564,-697.16784473,0.00040901,2]
[334283606,1722891038573,-697.16784473,0.00040933,2]
[334283607,1722891038583,-2000.0,0.00040952,4]
[334283608,1722891038592,-500.0,0.00040958,36]
[334283609,1722891038602,-18543.0608773,0.0004096,5]
[334283610,1722891038611,-2000.0,0.00040961,4]
[334283611,1722891038620,-2000.0,0.0004097,4]
[334283612,1722891038630,-1158.54050567,0.0004097,4]
[334283613,1722891038639,-2000.0,0.00040995,2]
[334283614,1722891038648,-27970.2175076,0.00040995,5]
[334283615,1722891038658,-3868.0,0.00041,120]
[334283616,1722891038672,-3868.0,0.00041,120]
[334283617,1722891038682,-3989.26,0.00041,120]
[334283618,1722891038692,-150.5,0.0004107,120]
[334283619,1722891038702,-150.5,0.0004108,120]
[334283620,1722891038711,-148344.487019,0.00041085,5]
[334283621,1722891038722,-150.5,0.0004109,120]
[334283622,1722891038732,-10465.19941605,0.00041095,21]
[334283623,1722891038742,-1174.58887239,0.00041095,31]
[334283624,1722891038752,-500.0,0.00041095,31]
[334283625,1722891038762,-581.38605208,0.00041095,31]
[334283626,1722891038773,-500.0,0.00041095,31]
[334283627,1722891038783,-500.0,0.00041095,31]
[334283628,1722891038793,-1143.59,0.00041095,31]
[334283629,1722891038804,-500.0,0.00041095,31]
[334283630,1722891038814,-500.0,0.00041095,31]
[334283631,1722891038828,-500.0,0.00041095,31]
[334283632,1722891038839,-500.0,0.00041095,31]
[334283633,1722891038850,-512.80833345,0.00041095,31]
[334283634,1722891038860,-500.0,0.00041095,31]
[334283635,1722891038871,-500.0,0.00041095,31]
[334283636,1722891038881,-500.0,0.00041095,31]
[334283637,1722891038890,-500.0,0.00041095,31]
[334283638,1722891038901,-3534.12,0.00041095,31]
[334283639,1722891038911,-500.0,0.00041095,31]
[334283640,1722891038920,-500.0,0.00041095,31]
[334283641,1722891038930,-500.0,0.00041095,31]
[334283642,1722891038940,-500.0,0.00041095,31]
[334283643,1722891038949,-500.0,0.00041095,31]
[334283644,1722891038960,-500.0,0.00041095,31]
[334283645,1722891038972,-500.0,0.00041095,31]
[334283646,1722891038982,-500.0,0.00041095,31]
[334283647,1722891038992,-549.11,0.00041095,31]
[334283648,1722891039002,-500.0,0.00041095,31]
[334283649,1722891039012,-500.0,0.00041095,31]
[334283650,1722891039022,-500.0,0.00041095,31]
[334283651,1722891039032,-542.96291549,0.00041095,31]
[334283652,1722891039042,-4911.12,0.00041095,31]
[334283653,1722891039053,-500.0,0.00041095,31]
[334283654,1722891039062,-500.0,0.00041095,31]
[334283655,1722891039071,-500.0,0.00041095,31]
[334283656,1722891039082,-500.0,0.00041095,31]
[334283657,1722891039091,-500.0,0.00041095,31]
[334283658,1722891039101,-500.0,0.00041095,31]
[334283659,1722891039111,-500.0,0.00041095,31]
[334283660,1722891039120,-500.0,0.00041095,31]
[334283661,1722891039130,-500.0,0.00041095,31]
[334283662,1722891039139,-500.0,0.00041095,31]
[334283663,1722891039149,-500.0,0.00041095,31]
[334283664,1722891039158,-500.0,0.00041095,31]
[334283665,1722891039168,-500.0,0.00041095,31]
[334283666,1722891039178,-615.57299332,0.00041095,31]
[334283667,1722891039188,-300.48496584,0.00041095,31]
[334283668,1722891039197,-500.0,0.00041095,31]
[334283669,1722891039207,-500.0,0.00041095,31]
[334283670,1722891039218,-500.0,0.00041095,31]
[334283671,1722891039227,-500.0,0.00041095,31]
[334283672,1722891039237,-500.0,0.00041095,31]
[334283673,1722891039246,-475.19079176,0.00041095,31]
[334283674,1722891039256,-500.0,0.00041095,31]
[334283675,1722891039266,-500.0,0.00041095,31]
[334283676,1722891039275,-500.0,0.00041095,31]
[334283677,1722891039285,-500.0,0.00041095,31]
[334283678,1722891039295,-500.0,0.00041095,31]
[334283679,1722891039304,-554.87628328,0.00041095,31]
[334283680,1722891039314,-500.0,0.00041095,31]
[334283681,1722891039323,-500.0,0.00041095,31]
[334283682,1722891039333,-500.0,0.00041095,31]
[334283683,1722891039342,-500.0,0.00041095,31]
[334283684,1722891039352,-500.0,0.00041095,31]
[334283685,1722891039362,-500.0,0.00041095,31]
[334283686,1722891039372,-500.0,0.00041095,31]
[334283687,1722891039381,-507.9071188,0.00041095,31]
[334283688,1722891039391,-500.0,0.00041095,31]
[334283689,1722891039401,-500.0,0.00041095,31]
[334283690,1722891039411,-500.0,0.00041095,31]
[334283691,1722891039421,-500.0,0.00041095,31]
[334283692,1722891039431,-500.0,0.00041095,31]
[334283693,1722891039441,-500.0,0.00041095,20]
[334283694,1722891039450,-500.0,0.00041095,31]
[334283695,1722891039460,-500.0,0.00041095,31]
[334283696,1722891039471,-500.0,0.00041095,31]
[334283697,1722891039481,-500.0,0.00041095,31]
[334283698,1722891039490,-500.0,0.00041095,31]
[334283699,1722891039499,-500.0,0.00041095,31]
[334283700,1722891039509,-500.0,0.00041095,31]
[334283701,1722891039518,-500.0,0.00041095,31]
[334283702,1722891039527,-500.0,0.00041095,31]
[334283703,1722891039537,-500.0,0.00041095,31]
[334283704,1722891039546,-500.0,0.00041095,31]
[334283705,1722891039555,-500.0,0.00041095,31]
[334283706,1722891039565,-500.0,0.00041095,31]
[334283707,1722891039574,-500.0,0.00041095,31]
[334283708,1722891039584,-500.0,0.00041095,31]
[334283709,1722891039593,-500.0,0.00041095,31]
[334283710,1722891039603,-500.0,0.00041095,31]
[334283711,1722891039612,-500.0,0.00041095,31]
[334283712,1722891039621,-500.0,0.00041095,31]
[334283713,1722891039630,-500.0,0.00041095,31]
[334283714,1722891039640,-613.05358503,0.00041095,31]
[334283715,1722891039649,-500.0,0.00041095,31]
[334283716,1722891039659,-500.0,0.00041095,31]
[334283717,1722891039669,-500.0,0.00041095,31]
[334283718,1722891039678,-500.0,0.00041095,31]
[334283719,1722891039688,-500.0,0.00041095,31]
[334283720,1722891039697,-6991.54,0.00041095,31]
[334283721,1722891039706,-712.64,0.00041095,21]
[334283722,1722891039716,-500.0,0.00041095,31]
[334283723,1722891039726,-450.51190373,0.00041095,31]
[334283724,1722891039735,-500.0,0.00041095,31]
[334283725,1722891039745,-501.35478265,0.00041095,31]
[334283726,1722891039755,-500.0,0.00041095,31]
[334283727,1722891039764,-505.19,0.00041095,31]
[334283728,1722891039774,-500.0,0.00041095,31]
[334283730,1722891039783,-500.0,0.00041095,31]
[334283732,1722891039793,-615.96,0.00041095,31]
[334283733,1722891039803,-500.9047467,0.00041095,31]
[334283734,1722891039812,-500.0,0.00041095,31]
[334283735,1722891039823,-500.0,0.00041095,31]
[334283736,1722891039835,-500.0,0.00041095,31]
[334283737,1722891039845,-500.0,0.00041095,31]
[334283738,1722891039854,-500.0,0.00041095,31]
[334283739,1722891039864,-500.0,0.00041095,31]
[334283740,1722891039875,-500.0,0.00041095,31]
[334283741,1722891039884,-500.0,0.00041095,31]
[334283742,1722891039893,-500.0,0.00041095,31]
[334283743,1722891039905,-500.0,0.00041095,31]
[334283744,1722891039915,-500.0,0.00041095,31]
[334283746,1722891039924,-500.0,0.00041095,31]
[334283748,1722891039934,-500.0,0.00041095,31]
[334283749,1722891039943,-503.70080589,0.00041095,31]
[334283750,1722891039952,-522.39,0.00041095,31]
[334283752,1722891039962,-500.0,0.00041095,31]
[334283753,1722891039974,-500.0,0.00041095,31]
[334283754,1722891039983,-500.0,0.00041095,31]
[334283755,1722891039993,-500.0,0.00041095,31]
[334283756,1722891040002,-500.0,0.00041095,31]
[334283757,1722891040012,-500.0,0.00041095,31]
[334283758,1722891040022,-500.0,0.00041095,31]
[334283759,1722891040032,-500.0,0.00041095,31]
[334283760,1722891040041,-500.0,0.00041095,31]
[334283761,1722891040058,-500.0,0.00041095,30]
[334283762,1722891040068,-500.0,0.00041095,31]
[334283763,1722891040078,-500.0,0.00041095,31]